Cogmind - Beta 12 *** ADVENTURER MODE // 2023.09.24 @ 21:06:09 Player: MistyLake9 Result: Destroyed by as-23587 with Assembled Blade Performance ------------- Evolutions (0) 0 Regions Visited (0) 0 Robots Destroyed (1) 5 Value Destroyed (6) 6 Prototype IDs (0) 0 Alien Tech Used (0) 0 Bonus (0) 0 TOTAL SCORE: 11 Bonus ------- None Cogmind --------- Core Integrity 0/250 Matter 282/300 Energy 100/100 System Corruption 3% Temperature Cool (0) Movement Core (100) Ox1 Location -11/Junkyard Parts ------- > --- POWER (1) -------- (None) > --- PROPULSION (2) --- (None) > --- UTILITY (2) ------ Small Storage Unit > --- WEAPON (2) ------- (None) > --- INVENTORY (8) ---- Compact Wheel Medium Laser Peak State ------------ > --- POWER ------------ Light Ion Engine > --- PROPULSION ------- Compact Wheel Compact Wheel > --- UTILITY ---------- Small Storage Unit > --- WEAPON ----------- Light Assault Rifle Light Assault Rifle > --- INVENTORY -------- (None) [Rating: 6] Favorites ----------- Power Light Ion Engine Engine Light Ion Engine Propulsion Compact Wheel Wheel Compact Wheel Utility Small Storage Unit Storage Small Storage Unit Weapon Light Assault Rifle Ballistic Gun Light Assault Rifle Build | -11 ------- Run | Jun Slots Evolved . | . Power . | . Propulsion . | . Utility . | . Weapon . | . Parts Attached 6 | 6 Power 1 | 1 Engine 1 | 1 Core . | . Reactor . | . Propulsion 2 | 2 Treads . | . Leg . | . Wheel 2 | 2 Hover . | . Flight . | . Utility 1 | 1 Device . | . Storage 1 | 1 Processor . | . Hackware . | . Protection . | . Artifact . | . Weapon 2 | 2 Energy Gun . | . Energy Cannon . | . Ballistic Gun 2 | 2 Ballistic Cannon . | . Launcher . | . Special Weapon . | . Impact Weapon . | . Slashing Weapon . | . Piercing Weapon . | . Special Melee Weapon . | . Unidentified Prototypes . | . Parts Lost 4 | 4 Power 1 | 1 Propulsion 2 | 2 Utility . | . Weapon 1 | 1 Highest Loss Streak 4 | 4 To Critical Strikes . | . Average Slot Usage (%) . | . Naked Turns . | . Heaviest Build 10 | 10 Greatest Support 32 | 32 Greatest Overweight (x) 1 | 1 Average Overweight (x) . | . Largest Inventory Capacity 8 | 8 Average Capacity 7 | 7 Most Carried 2 | 2 Average Carried 1 | 1 Final Capacity 8 | 8 Final Carried 2 | 2 Class Distribution -------------------- None Dominant Class ---------------- None Resources | -11 ----------- Run | Jun Matter Collected 261 | 261 Remotely . | . Salvage Created 159 | 159 Parts 2 | 2 Haulers Intercepted . | . Recyclers Shooed . | . Parts Field Recycled . | . Retrieved Matter . | . Parts Self-Destructed . | . Prevented . | . Kills | -11 ------- Run | Jun Combat Hostiles Destroyed 5 | 5 Guns 5 | 5 Classes Destroyed 2 | 2 Recycler 1 | 1 Assembled 5 | 5 Best Kill Streak 5 | 5 Combat Bots Only 5 | 5 Max Kills in Single Turn 1 | 1 Gunslinging . | . Exploded . | . Melee . | . Uniques/NPCs Destroyed . | . Combat | -11 -------- Run | Jun Damage Taken 640 | 640 Core 267 | 267 Absorbed by Shields . | . Core Remaining (%) . | . Volleys Fired 24 | 24 Largest 2 | 2 Hottest 40 | 40 Shots Fired 46 | 46 Gun 46 | 46 Cannon . | . Launcher . | . Special . | . Kinetic 46 | 46 Thermal . | . Explosive . | . Electromagnetic . | . Robot Hit Streak 11 | 11 Robot Miss Streak 2 | 2 Penetration Max . | . Secondary Targets 1 | 1 Max Gunslinging Chain 1 | 1 Shots Hit Robots 35 | 35 Core Hits 20 | 20 Critical Kills . | . Critical Parts Destroyed . | . Critical Strikes . | . Melee Attacks . | . Impact . | . Slashing . | . Piercing . | . Sneak Attacks . | . Combat Hostiles . | . Follow-up Attacks . | . Damage Inflicted 278 | 278 Guns 276 | 276 Cannons . | . Explosions . | . Melee . | . Ramming 2 | 2 Kinetic 276 | 276 Thermal . | . Explosive . | . Electromagnetic . | . Impact . | . Slashing . | . Piercing . | . Highest Corruption 3 | 3 Average Corruption 3 | 3 Corruption Purged . | . Corruption Blocked . | . Effects 1 | 1 Message Errors 1 | 1 Overload Shots . | . Overflow Damage . | . Projectiles . | . Explosions . | . Melee . | . Knockbacks . | . Impact . | . Kinetic . | . Secondary . | . Self-Inflicted Damage 1 | 1 Shots . | . Rammed 2 | 2 Targets Rammed 2 | 2 Kicked . | . Crushed . | . Highest Temperature 20 | 20 Average Temperature 15 | 15 Received Heat Transfer 100 | 100 Siege Activations . | . Robots Corrupted . | . Combat Hostiles . | . Parts Fried . | . Impact Corruptions . | . Robots Melted . | . Combat Hostiles . | . Parts Melted . | . Heat Transferred . | . Parts Sabotaged . | . Parts Stolen . | . Parts Stripped . | . Power Chain Reactions . | . Missiles Intercepted . | . Alert | -11 ------- Run | Jun Peak Influence 5 | 5 Initial . | . Average 1 | 1 Maximum Alert Level . | . Low Security (%) 100 | 100 Level 1 . | . Level 2 . | . Level 3 . | . Level 4 . | . Level 5 . | . High Security . | . Max Security . | . Squads Dispatched . | . Investigation . | . Extermination . | . Reinforcement . | . Assault . | . Garrison . | . Intercept . | . Searches Triggered . | . Construction Impeded . | . Haulers Reinforced . | . Active Scanning Responses . | . Cargo Convoy Interrupts . | . Stealth | -11 --------- Run | Jun Distress Signals . | . Communications Jammed . | . Distress Signals . | . Times Spotted 23 | 23 Peak Tracking Total 19 | 19 Tactical Retreats 1 | 1 Traps | -11 ------- Run | Jun Traps Triggered . | . Indirectly . | . Trap Hack Attempts . | . Triggered . | . Disarmed . | . Reprogrammed . | . Reused . | . Traps Extracted . | . Installed . | . Triggered . | . Machines | -11 ---------- Run | Jun Machines Disabled . | . Max in Single Turn . | . Machines Repaired . | . Machines Sabotaged . | . Overloaded Fab Kills . | . Hacking | -11 --------- Run | Jun Machines Accessed . | . Terminals . | . Fabricators . | . Repair Stations . | . Recycling Units . | . Scanalyzers . | . Garrison Access . | . Total Hacks . | . Successful . | . Failed . | . Catastrophic . | . Database Lockouts . | . Manual . | . Terminals . | . Fabricators . | . Repair Stations . | . Recycling Units . | . Scanalyzers . | . Garrison Access . | . Terminal Hacks . | . Fabricator Hacks . | . Repair Station Hacks . | . Recycling Unit Hacks . | . Scanalyzer . | . Garrison Access Hacks . | . Unauthorized Hacks . | . Terminals . | . Fabricators . | . Repair Stations . | . Recycling Units . | . Scanalyzers . | . Garrison Access . | . Data Cores Recovered . | . Used . | . Hacking Detections . | . Full Trace Events . | . Feedback Events . | . Feedback Blocked . | . Robot Schematics Acquired . | . Robots Built . | . Authchips . | . Time . | . Total Robot Build Rating . | . Part Schematics Acquired . | . Parts Built . | . Authchips . | . Time . | . Total Part Build Rating . | . Parts Repaired . | . Time . | . Parts Recycled . | . Recycled Matter . | . Retrieved Matter . | . Retrieved Components . | . Parts Scanalyzed . | . Part Schematics Acquired . | . Parts Damaged . | . Bothacking | -11 ------------ Run | Jun Used RIF Installer . | . Robots Hacked . | . Non-combat . | . Combat . | . Robot Hacks Applied . | . Relay Couplers Released . | . Fabnet Peak Effective % . | . Robots Rewired . | . Allies Hacked . | . Hacks Repelled . | . Allies | -11 -------- Run | Jun Total Allies . | . Largest Group . | . Highest-Rated Group . | . Highest-Rated Ally . | . Total Orders . | . Ally Attacks . | . Total Damage . | . Kills . | . Allies Corrupted . | . Allies Melted . | . Intel | -11 ------- Run | Jun Robot Analysis Total . | . Derelict Logs Recovered . | . Drone Launches . | . Drone Recoveries . | . Exploration | -11 ------------- Run | Jun Turns Passed 1247 | 1247 Spaces Moved 124 | 124 Core 11 | 11 Treads . | . Legs . | . Wheels 113 | 113 Hover . | . Flight . | . Fastest Speed 50 | 50 Average Speed 97 | 97 Slowest Speed 100 | 100 Overloaded Moves . | . Propulsion Burnouts . | . Robots Hopped . | . Cave-ins Triggered . | . Exploration Rate (%) 23 | 23 Regions Visited . Branch Regions . Pre-discovered Areas . | . Known Exits Taken . | . Unknown Exits Taken . | . Scrap Searched . | . Spaces Dug . | . Terrain Destroyed . | . Melee . | . Projectile . | . AOE . | . Terrain Rammed . | . Walls Destroyed . | . Machines Disabled . | . Actions | -11 --------- Run | Jun Total 1212 | 1212 Wait 1048 | 1048 Move 124 | 124 Hop . | . Pick Up 8 | 8 Fast Attach . | . Attach 6 | 6 Detach . | . Swap . | . Drop . | . Fire 24 | 24 Melee . | . Ram 2 | 2 Kick . | . Crush . | . Escape Stasis . | . Rewire . | . Trap . | . Miscellaneous . | . Route ------- -11/Junkyard (discovered 1 exit: [*Mat]) History --------- Turn | Location | Event 11 | -11/Junkyard | Discovered new exit (range 16) 1186 | -11/Junkyard | Assembled infested the area 1245 | -11/Junkyard | Core integrity fell below 50% 1247 | -11/Junkyard | Core integrity fell below 20% 1248 | -11/Junkyard | Destroyed by as-23587 with Assembled Blade Last Messages --------------- 01209_ Destroyed Asb. Hover Unit. 01214_ as-18263 destroyed. 01221_ Lgt. Ion Engine destroyed. 01227_ Com. Wheel destroyed. 01230_ as-71007 destroyed. 01231_ Knocked back. 01238_ as-06751 destroyed. 01238_ Switching to secondary target: as-29880. 01239_ Lgt. Assault Rifle severed. 01240_ Com. Wheel destroyed. 01240_ System corrupted by crushing effect (+3). 01242_ 7U9W7<6NH9DTLYB>VNUSUQ5R3KCW 01243_ Lgt. Assault Rifle destroyed. 01244_ Slammed into as-37638. 01245_ Acquired 17 matter. 01245_ Slammed into as-53246. 01246_ Acquired 16 matter. 01246_ Acquired 12 matter. 01248_ C-30 ARC bursts open, deploying its payload. 01248_ D-53 Grenadier unfolds itself. Map ----- +----------------------------------------------------+ | | | | | | | | | | | | | ????????????????????????????????????????????????? | | ????????????????????????????????????????????????? | | ????????????????????????????????????????????????? | | ????????????????????????????????????????????????? | | ????????????????????????????????????????????????? | | ????????????????????????##??#???????????????????? | | ?????????????????????#? "## ???????????????????? | | ?????????????????????# " ???????????????????? | | ?????????????????????# " ???????????????????? | | ?????????????????????? " ????????????????????? | | ??????????????????????? " ????????????????????? | | ??????????????????????? " ????????????????????? | | ???????????????????????? ????????????????????? | | ????????????????????????# #????????????????????? | | ????????????????????????#a|#########????????????? | | ????????????????????????#!a# [ #????????????? | | ????????????????????????#aa#aa #????????????? | | ????????????????????????#aaa% #????????????? | | ######################### a# #????????????? | | @ # #????????????? | | d d #########????????????? | | # ########### ### ######????????????????????? | | # #########?######?###?????????????????????????? | | # # #????????????????????????????????????? | | # #????????????????????????????????????? | | # # #????????????????????????????????????? | | #### #????????????????????????????????????? | | #### #????????????????????????????????????? | | # #????????????????????????????????????? | | #????????????????????????????????????? | | #### #????????????????????????????????????? | | ???#########????????????????????????????????????? | | ????????????????????????????????????????????????? | | ????????????????????????????????????????????????? | | ##?######???????????????????????????????????????? | | ### #???????????????????????????????????????? | | #???????????????????????????????????????? | | #???????????????????????????????????????? | | ### #???????????????????????????????????????? | | ##?## ##???????????????????????????????????????? | | ????# #????????????????????????????????????????? | | ????# #????????????????????????????????????????? | | ????# #????????????????????????????????????????? | | ????# #????????????????????????????????????????? | +----------------------------------------------------+ Best States ------------- Heat Dissipation 25 Energy Generation 10 Energy Capacity 125 Matter Stores 252 Matter Capacity 300 Sight Range 16 Terrain Scan Density 10 Resistance: KI 20 Resistance: TH 20 Resistance: EX 20 Resistance: EM 20 Resistance: I 20 Resistance: S 20 Resistance: P 20 Evasion (%) 40 Offensive Hacking 10 Item Schematics ----------------- None Robot Schematics ------------------ None Fabricated ------------ Nothing Alien Tech Used ----------------- None Achievements -------------- Curiosity Killed The Cat Challenges ------------ None Game ------ Seed DataCompactCutter Manual? 0 Play Time 00:13:36 Cumulative 10.0 hours Start 2023.09.24 @ 20:46:01 End 2023.09.24 @ 21:06:09 Sessions 2 Manual Loads 0 Difficulty Adventurer Special Mode None Game No. 9 Rogue 0 Adventurer 9 Explorer 0 Win Type - Total 0 Types 0/0/0/0/0/0/0/0/0 Lore% 12 Gallery% 15 Achievement% 14 Wizard Run 0 Options --------- ASCII 0 Keyboard 0 Movement Mouse Keybinds 0 Fullscreen 2 Font 18/X11 Map View 76x50 Tactical HUD 1 Map Filters NONE Filters NONE Steam 1 RUN: 8048a9a7-09e2-4ca0-a55c-c73c1dbcdb96